Cogmind - Beta 17 *** ADVENTURER MODE // 2026.08.17 @ 04:13:32 Player: F-forge Result: Destroyed by WC-GTN(z) with Makeshift Axe Performance ------------- Evolutions (1) 500 Regions Visited (4) 800 Robots Destroyed (41) 205 Value Destroyed (706) 706 Prototype IDs (1) 20 Alien Tech Used (0) 0 Bonus (-18) -18 TOTAL SCORE: 2213 Bonus ------- Friendly Fire -18 Cogmind --------- Core Integrity 0/400 Matter 300/300 Energy 97/100 System Corruption 8% Temperature Cool (0) Movement Core (200) Ox3 Location -7/Zion Parts ------- > --- POWER (1) -------- (None) > --- PROPULSION (3) --- (None) > --- UTILITY (3) ------ Medium Storage Unit > --- WEAPON (2) ------- (None) > --- INVENTORY (10) --- Improved Heat Sink Large Storage Unit Visual Processing Unit Terrain Scanner Light Armor Plating Heavy Missile Launcher Mining Laser Makeshift Spear Peak State ------------ > --- POWER ------------ Ion Engine > --- PROPULSION ------- Aluminum Leg Wheel Compact Wheel > --- UTILITY ---------- Medium Storage Unit Seismic Detector Hacking Drone Bay > --- WEAPON ----------- Coil Gun CR-A16's Pointy Stick > --- INVENTORY -------- Improved Heat Sink Large Storage Unit Visual Processing Unit Terrain Scanner Light Armor Plating Particle Gun Assault Rifle Heavy Missile Launcher Mining Laser [Rating: 25] Favorites ----------- Power Ion Engine Engine Ion Engine Propulsion Aluminum Leg Leg Aluminum Leg Wheel Wheel Utility Seismic Detector Device Seismic Detector Storage Medium Storage Unit Weapon Assault Rifle Energy Gun Particle Gun Ballistic Gun Assault Rifle Launcher Grenade Launcher Piercing Weapon CR-A16's Pointy Stick Build | -11 -10 -9 -9 -7 ------- Run | Yrd Mat Mat Min Zio Slots Evolved 2 | . . 2 . . Power . | . . . . . Propulsion 1 | . . 1 . . Utility 1 | . . 1 . . Weapon . | . . . . . Parts Attached 23 | 8 7 3 . 5 Power 2 | 1 1 . . . Engine 2 | 1 1 . . . Core . | . . . . . Reactor . | . . . . . Propulsion 8 | 2 2 2 . 2 Treads . | . . . . . Leg 6 | 2 2 2 . . Wheel 2 | . . . . 2 Hover . | . . . . . Flight . | . . . . . Utility 6 | 2 2 1 . 1 Device 3 | 1 . 1 . 1 Storage 3 | 1 2 . . . Processor . | . . . . . Hackware . | . . . . . Protection . | . . . . . Artifact . | . . . . . Weapon 7 | 3 2 . . 2 Energy Gun 2 | 1 1 . . . Energy Cannon . | . . . . . Ballistic Gun 3 | 2 . . . 1 Ballistic Cannon . | . . . . . Launcher 1 | . 1 . . . Special Weapon . | . . . . . Impact Weapon . | . . . . . Slashing Weapon . | . . . . . Piercing Weapon 1 | . . . . 1 Special Melee Weapon . | . . . . . Unidentified Prototypes 1 | . . . . 1 Parts Lost 12 | . . . 1 11 Power 1 | . . . . 1 Propulsion 6 | . . . 1 5 Utility 1 | . . . . 1 Weapon 4 | . . . . 4 Highest Loss Streak 9 | . . . 1 9 To Critical Strikes 2 | . . . 1 1 Average Backups 8 | 2 7 9 9 9 Power . | . . . . . Propulsion 2 | 2 3 2 2 1 Utility 2 | . 1 3 4 4 Weapon 3 | . 2 3 3 3 Tool/Special . | . . . . . Unused Backups 10 | . 4 1 . 5 Power 1 | . . 1 . . Propulsion 3 | . 3 . . . Utility 3 | . . . . 3 Weapon 3 | . 1 . . 2 Tool/Special . | . . . . . Average Slot Usage (%) 94 | . 100 93 97 88 Engine 12 | . 14 11 11 10 Leg 25 | . 28 30 30 17 Wheel 1 | . . . . 5 Device 17 | . 14 18 22 21 Storage 12 | . 14 11 11 11 Energy Gun 7 | . 4 7 11 10 Ballistic Gun 15 | . 22 11 11 10 Launcher 1 | . 1 3 . . Peak Build Rating 25 | 7 9 11 11 25 Average Rating 10 | 5 8 10 10 13 On Entrance 7 | . 7 9 10 11 Avg Prop Armor Cover (%) 7 | . . . . 7 Naked Turns . | . . . . . Heaviest Build 31 | 13 31 22 22 25 Greatest Support 30 | 20 20 30 30 30 Greatest Overweight (x) 3 | 3 1 1 . 3 Average Overweight (x) . | . . . . . Largest Inventory Capacity 15 | 8 15 10 10 10 Average Capacity 9 | 7 8 10 10 10 Most Carried 10 | 6 9 10 10 10 Average Carried 8 | 3 7 9 9 9 Final Capacity 10 | 8 10 10 10 10 Final Carried 10 | 6 9 10 9 8 Class Distribution -------------------- 68% | Scavenger-Mutant 31% | Mutant Dominant Class ---------------- Mutant | -10/Materials Scavenger-Mutant | -9/Materials Scavenger-Mutant | -9/Mines Scavenger-Mutant | -7/Zion Resources | -11 -10 -9 -9 -7 ----------- Run | Yrd Mat Mat Min Zio Matter Collected 943 | 220 333 324 30 36 Remotely . | . . . . . Salvage Created 1193 | 145 488 445 53 62 Parts 73 | 11 25 26 9 2 Haulers Intercepted . | . . . . . Recyclers Shooed 2 | . 2 . . . Parts Field Recycled . | . . . . . Retrieved Matter . | . . . . . Parts Self-Destructed 2 | . . . . 2 Prevented . | . . . . . Parts Restored . | . . . . . Kills | -11 -10 -9 -9 -7 ------- Run | Yrd Mat Mat Min Zio Combat Hostiles Destroyed 25 | . 6 14 4 1 Guns 24 | . 5 14 4 1 AOE 1 | . 1 . . . Classes Destroyed 8 | 3 3 1 . 1 Worker 7 | 1 5 1 . . Tunneler 3 | 3 . . . . Recycler 3 | 1 2 . . . Watcher 3 | . 1 2 . . Swarmer 13 | . 2 7 4 . Grunt 9 | . 4 5 . . Sentry 2 | . . 2 . . Explorer 1 | . . . . 1 Best Kill Streak 5 | 2 4 4 5 1 Combat Bots Only 4 | . 3 4 4 1 Max Kills in Single Turn 2 | 1 1 1 2 1 Gunslinging 1 | . . . 1 . Exploded 1 | . 1 . . . Melee . | . . . . . Uniques/NPCs Destroyed . | . . . . . Combat | -11 -10 -9 -9 -7 -------- Run | Yrd Mat Mat Min Zio Hostile Shots Fired 197 | . 35 84 20 58 Missed 62 | . 12 25 5 20 Hits 135 | . 23 59 15 38 Melee 30 | . . . . 30 Projectile 105 | . 23 59 15 8 Critical Strikes 6 | . . 1 1 4 Damage Taken 1754 | . 180 485 81 1008 Core 441 | . 27 106 5 303 Absorbed by Shields . | . . . . . Ignored by Resistances 505 | . 56 146 30 273 Core Remaining (%) 94 | 100 89 . . . Volleys Fired 124 | 11 37 67 5 4 Largest 2 | 2 2 2 2 2 Hottest 95 | 60 85 85 85 95 Shots Fired 208 | 22 62 107 10 7 Gun 202 | 22 58 105 10 7 Cannon . | . . . . . Launcher 6 | . 4 2 . . Special . | . . . . . Kinetic 148 | 18 56 65 5 4 Thermal 50 | . 2 40 5 3 Explosive 6 | . 4 2 . . Electromagnetic 4 | 4 . . . . Robot Hit Streak 19 | 6 8 19 8 10 Robot Miss Streak 3 | 1 2 3 1 1 Penetration Max . | . . . . . Secondary Targets 6 | . . 3 2 1 Max Gunslinging Chain 1 | . . 1 1 1 Shots Hit Robots 154 | 15 42 81 8 8 Core Hits 64 | 6 24 28 4 2 Critical Kills . | . . . . . Critical Parts Destroyed 1 | . . 1 . . Critical Strikes 2 | . . 1 . 1 Destroy 1 | . . 1 . . Impale 1 | . . . . 1 Melee Attacks 4 | . . . . 4 Impact . | . . . . . Slashing . | . . . . . Piercing 4 | . . . . 4 Sneak Attacks . | . . . . . Combat Hostiles . | . . . . . Follow-up Attacks . | . . . . . Damage Inflicted 2289 | 186 735 1140 123 105 Guns 2039 | 186 536 1104 123 90 Cannons . | . . . . . Explosions 235 | . 199 36 . . Melee 15 | . . . . 15 Ramming . | . . . . . Kinetic 1348 | 133 510 581 65 59 Thermal 638 | . 26 523 58 31 Explosive 235 | . 199 36 . . Electromagnetic 53 | 53 . . . . Impact . | . . . . . Slashing . | . . . . . Piercing 15 | . . . . 15 Highest Corruption 8 | . . . . 8 Average Corruption 4 | . . . . 4 Corruption Purged . | . . . . . Corruption Blocked . | . . . . . Overload Shots . | . . . . . Overflow Damage . | . . . . . Projectiles . | . . . . . Explosions . | . . . . . Melee . | . . . . . Knockbacks . | . . . . . Impact . | . . . . . Kinetic . | . . . . . Secondary . | . . . . . Self-Inflicted Damage . | . . . . . Shots . | . . . . . Rammed . | . . . . . Targets Rammed . | . . . . . Kicked . | . . . . . Crushed . | . . . . . Highest Temperature 171 | . 24 171 75 24 Average Temperature 47 | . 9 53 38 11 Received Heat Transfer 303 | . 87 171 . 45 Siege Activations . | . . . . . Martial Activations . | . . . . . Shielding Activations . | . . . . . Robots Disrupted . | . . . . . Combat Hostiles . | . . . . . Robots Corrupted . | . . . . . Combat Hostiles . | . . . . . Parts Fried . | . . . . . Impact Corruptions . | . . . . . Robots Melted . | . . . . . Combat Hostiles . | . . . . . Parts Melted 1 | . . 1 . . Heat Transferred 1554 | . 74 1258 148 74 Parts Sabotaged . | . . . . . Parts Stolen . | . . . . . Parts Stripped . | . . . . . Power Chain Reactions . | . . . . . Alert | -11 -10 -9 -9 -7 ------- Run | Yrd Mat Mat Min Zio Maximum Alert Level 1 | . . 1 . . Low Security (%) 92 | 100 100 77 100 . Level 1 7 | . . 22 . . Level 2 . | . . . . . Level 3 . | . . . . . Level 4 . | . . . . . Level 5 . | . . . . . High Security . | . . . . . Max Security . | . . . . . Peak Influence 240 | 10 96 240 146 . Initial 66 | . . . 66 . Average 53 | 1 28 100 120 . Influence Increases 790 | 25 273 402 90 . Destroy 0b10 Robot/C 480 | . 120 280 80 . Destroy 0b10 Robot/NC 80 | 25 40 15 . . Destroy Leader 96 | . 22 64 10 . Successful Hack 4 | . 4 . . . Disable Machine 18 | . 18 . . . Destroy Structure 22 | . 9 13 . . Lose Combat Pursuer 90 | . 60 30 . . Influence Decreases 790 | 25 273 200 156 136 Entered New Map 272 | . . . 136 136 Time Decay 508 | 25 273 200 10 . Lost Part 10 | . . . 10 . Squads Dispatched 4 | . 1 3 . . Investigation 2 | . 1 1 . . Extermination . | . . . . . Reinforcement 2 | . . 2 . . Assault . | . . . . . Garrison . | . . . . . Intercept . | . . . . . Searches Triggered . | . . . . . Construction Impeded . | . . . . . Haulers Reinforced . | . . . . . Active Scanning Responses . | . . . . . Cargo Convoy Interrupts . | . . . . . Stealth | -11 -10 -9 -9 -7 --------- Run | Yrd Mat Mat Min Zio Distress Signals 2 | . . 2 . . Communications Jammed . | . . . . . Distress Signals . | . . . . . Times Spotted 51 | . 15 23 4 9 Peak Tracking Total 8 | . 5 6 4 8 Tactical Retreats 5 | . 3 2 . . Traps | -11 -10 -9 -9 -7 ------- Run | Yrd Mat Mat Min Zio Traps Triggered 2 | . 2 . . . Indirectly . | . . . . . Trap Hack Attempts . | . . . . . Triggered . | . . . . . Disarmed . | . . . . . Reprogrammed . | . . . . . Reused . | . . . . . Traps Extracted . | . . . . . Installed . | . . . . . Triggered . | . . . . . Machines | -11 -10 -9 -9 -7 ---------- Run | Yrd Mat Mat Min Zio Machines Disabled 2 | . 2 . . . Max in Single Turn 2 | . 2 . . . Machines Repaired . | . . . . . Machines Dismantled . | . . . . . Machines Sabotaged . | . . . . . Overloaded Fab Kills . | . . . . . Hacking | -11 -10 -9 -9 -7 --------- Run | Yrd Mat Mat Min Zio Machines Accessed 9 | . 6 3 . . Terminals 7 | . 5 2 . . Fabricators . | . . . . . Repair Stations . | . . . . . Recycling Units 1 | . 1 . . . Scanalyzers 1 | . . 1 . . Garrison Access . | . . . . . Total Hacks 21 | . 12 9 . . Successful 9 | . 5 4 . . Failed 12 | . 7 5 . . Catastrophic 3 | . 1 2 . . Database Lockouts . | . . . . . Manual . | . . . . . Terminals 14 | . 10 4 . . Fabricators . | . . . . . Repair Stations . | . . . . . Recycling Units 2 | . 2 . . . Scanalyzers 5 | . . 5 . . Garrison Access . | . . . . . Terminal Hacks 4 | . 4 . . . Locate Traps 1 | . 1 . . . Hauler Manifests 1 | . 1 . . . Zone Layout 2 | . 2 . . . Fabricator Hacks . | . . . . . Repair Station Hacks . | . . . . . Recycling Unit Hacks 1 | . 1 . . . Report Inventory 1 | . 1 . . . Scanalyzer 4 | . . 4 . . Insert Component 1 | . . 1 . . Analyze 1 | . . 1 . . Retrieve Study 2 | . . 2 . . Garrison Access Hacks . | . . . . . Unauthorized Hacks . | . . . . . Terminals . | . . . . . Fabricators . | . . . . . Repair Stations . | . . . . . Recycling Units . | . . . . . Scanalyzers . | . . . . . Garrison Access . | . . . . . Data Cores Recovered . | . . . . . Used . | . . . . . Hacking Detections 9 | . 6 3 . . Full Trace Events 1 | . . 1 . . Feedback Events . | . . . . . Feedback Blocked . | . . . . . Robot Schematics Acquired . | . . . . . Robots Built . | . . . . . Authchips . | . . . . . Time . | . . . . . Total Robot Build Rating . | . . . . . Part Schematics Acquired 1 | . . 1 . . Parts Built . | . . . . . Authchips . | . . . . . Time . | . . . . . Total Part Build Rating . | . . . . . Part Studies Acquired 2 | . . 2 . . Parts Repaired . | . . . . . Time . | . . . . . Parts Recycled . | . . . . . Recycled Matter . | . . . . . Retrieved Matter . | . . . . . Retrieved Components . | . . . . . Parts Scanalyzed 1 | . . 1 . . Part Schematics Acquired 1 | . . 1 . . Parts Damaged . | . . . . . Bothacking | -11 -10 -9 -9 -7 ------------ Run | Yrd Mat Mat Min Zio Used RIF Installer . | . . . . . Robots Hacked . | . . . . . Non-combat . | . . . . . Combat . | . . . . . Robot Hacks Applied . | . . . . . Relay Couplers Released . | . . . . . Fabnet Peak Effective % . | . . . . . Robots Rewired . | . . . . . Allies Hacked . | . . . . . Hacks Repelled . | . . . . . Allies | -11 -10 -9 -9 -7 -------- Run | Yrd Mat Mat Min Zio Total Allies . | . . . . . Largest Group . | . . . . . Highest-Rated Group . | . . . . . Highest-Rated Ally . | . . . . . Total Orders . | . . . . . Ally Attacks . | . . . . . Total Damage . | . . . . . Kills . | . . . . . Allies Corrupted . | . . . . . Allies Melted . | . . . . . Intel | -11 -10 -9 -9 -7 ------- Run | Yrd Mat Mat Min Zio Active Infowar (turns) 1926 | 22 784 489 33 598 Terrain 931 | . . 332 33 566 Seismic 1926 | 22 784 489 33 598 Robot Analysis Total . | . . . . . Derelict Logs Recovered 2 | . . . . 2 Drone Launches . | . . . . . Drone Recoveries . | . . . . . Exploration | -11 -10 -9 -9 -7 ------------- Run | Yrd Mat Mat Min Zio Turns Passed 2043 | 121 784 489 33 616 Spaces Moved 1214 | 52 504 229 15 414 Core 9 | 7 . . . 2 Treads . | . . . . . Legs 1069 | 45 504 229 15 276 Wheels 136 | . . . . 136 Hover . | . . . . . Flight . | . . . . . Fastest Speed 50 | 50 120 105 105 90 Average Speed 130 | 128 128 119 105 138 Slowest Speed 245 | 200 190 190 105 245 Overloaded Moves . | . . . . . Propulsion Burnouts . | . . . . . Robots Hopped . | . . . . . Potential Cave-ins . | . . . . . Cave-ins Triggered . | . . . . . Exploration Rate (%) 33 | 4 77 29 11 44 Regions Visited 4 Branch Regions 2 Pre-discovered Areas . | . . . . . Known Exits Taken . | . . . . . Unknown Exits Taken 4 | 1 1 1 1 . Scrap Searched . | . . . . . Spaces Dug . | . . . . . Terrain Destroyed 28 | . 13 15 . . Melee . | . . . . . Projectile . | . . . . . AOE 28 | . 13 15 . . Terrain Rammed . | . . . . . Walls Destroyed . | . . . . . Machines Disabled . | . . . . . Actions | -11 -10 -9 -9 -7 --------- Run | Yrd Mat Mat Min Zio Total 1460 | 81 582 336 21 440 Wait 57 | 2 15 35 . 5 Move 1210 | 51 503 228 14 414 Hop . | . . . . . Pick Up 21 | 7 9 1 . 4 Fast Attach 9 | 7 . 2 . . Attach 7 | 1 1 . 1 4 Detach 1 | 1 . . . . Swap 13 | . 7 2 1 3 Drop 14 | 1 10 1 . 2 Fire 124 | 11 37 67 5 4 Melee 4 | . . . . 4 Ram . | . . . . . Kick . | . . . . . Crush . | . . . . . Escape Stasis . | . . . . . Rewire . | . . . . . Trap . | . . . . . Miscellaneous . | . . . . . Route ------- -11/Scrapyard -10/Materials (discovered 3 exits: *Mat x3) -9/Materials -9/Mines -7/Zion (discovered 1 exit: [*Pro]) History --------- Turn | Location | Event 22 | -11/Scrapyard | Discovered new exit (range 14) 122 | -11/Scrapyard | Entered Materials 306 | -10/Materials | Build established: Mutant 450 | -10/Materials | Discovered new exit (range 15) 582 | -10/Materials | Discovered new exit (range 10) 883 | -10/Materials | Discovered new exit (range 13) 906 | -10/Materials | Entered another Materials area 906 | -9/Materials | Evolved 2 slots: Propulsion x1, Utility x1 951 | -9/Materials | Build established: Scavenger-Mutant 1380 | -9/Materials | Discovered new exit (range 7) 1395 | -9/Materials | Entered Mines 1417 | -9/Mines | A Derelict revealed a hidden shortcut to a safe place 1428 | -9/Mines | Entered Zion 1448 | -7/Zion | Found CR-A16's Pointy Stick 1541 | -7/Zion | Discovered new exit (range 15) 1984 | -7/Zion | Learned Factory interactive machine intel 1993 | -7/Zion | Given the Hacking Drone Bay 1993 | -7/Zion | Found Prototype Device 1994 | -7/Zion | Identified Hacking Drone Bay 2005 | -7/Zion | Attacked by Zionites 2030 | -7/Zion | Core integrity fell below 50% 2038 | -7/Zion | Core integrity fell below 20% 2044 | -7/Zion | Destroyed by WC-GTN(z) with Makeshift Axe Last Messages --------------- Switching to secondary target: VQ-UF7(z). Assault Rifle destroyed. System corrupted by crushing effect (+3). 3B-4J9(z) overheating. 3B-4J9(z) heat spikes uncontrollably. Particle Gun destroyed. 3B-4J9(z) overheating. Acquired 26 matter. 3B-4J9(z) overheating. 3B-4J9(z) heat damages Mak. ECM Suite, Mak. Laser, Mak. Laser, Mak. Power Source. Hacking Drone Bay severed. 3B-4J9(z) overheating. 3B-4J9(z) heat short circuits Mak. Laser. 3B-4J9(z) heat damages Carbon-fiber Leg, Mak. Axe, Mak. Power Source. 3B-4J9(z) pulls a Mak. Axe out of the Twisted Machinery. Acquired Mak. Spear. 3B-4J9(z) heat damages Mak. Axe. Map ----- +----------------------------------------------------+ | ?????????????????????????????????????????????????? | | ?????????????????????????????????????????????????? | | ?????????????????????????????????????????????????? | | ?????????????????????????????????????????????????? | | ?????????????????????????????????????????????????? | | ?????????????????????????????????????????????????? | | ?????????????????????????????????????????????????? | | ?????????????????????????????????????????????????? | | ?????????????????????????????????????????????????? | | ?????????????????????????????????????????????????? | | ?????????????????????????? ???????????????????? | | ????????????????????????#" ??????????????????? | | ???????????????????????""" ??????????????????? | | ??????????????????????? ?????????????????? | | ??????????????????????? ????????????????? | | ??????????????????????"" "?#####??##?????? | | ?????????????????????"""" "##"""#?#"##????? | | ?????????????????????"""" ""#" "##"""##???? | | ?????????????????????""" """"""# """"#???? | | ?????????????????????""" """""""" ""#???# | | ???????????????????? """ """""""" ""##?#" | | ???????????????????"""#" """" """""" | | ??????????????????"""""" "" "" """""" | | ????????????????""""""""" | | ??????????? """ """""z | | ??????????? " @zz | | ????????? ## ## zz """ """" | | ??????????????????# ???# z """"" """"" | | ???????????????? ?""" " " """"" """"## | | ?????????????? ???""" " "" """" """""" | | ???????????? ???? """ "" "" | | ???????????""?????? # """"" "" | | ??????????????????## ## """"""""" "" "" | | ?????????????????? """"""#"" """"""""""" | | ?????????????????""#"" """"" """""""""""" | | ?????????????????"?##"" """" """#"##""""# | | ????????????????????""" """ """"#""" ""# | | ?????????????????????"" """" ""# | | ????????????????????"" ""# | | ?????????????????????"" "" """ | | ?????????????????????""""""""" """" """"" "" | | ????????????????????????#"#"#"""""""" """""" " | | ????????????????????????????####""""" ""##" "" | | ???????????????????????????????####""""##""""""""" | | ??????????????????????????????????#"##"###"#"#"#"# | | ????????????????????????????????#?##?###?######### | | ?????????????????????????????????????????????????? | | ????????????????????????????????????????????????## | | ?????????????????????????????????????????????????? | | ?????????????????????????????????????????????????? | +----------------------------------------------------+ Best States ------------- Heat Dissipation 28 Energy Generation 12 Energy Capacity 250 Matter Stores 300 Matter Capacity 300 Sight Range 16 Terrain Scan Range 14 Terrain Scan Density 10 Resistance: KI 20 Resistance: TH 20 Resistance: EX 20 Resistance: EM 20 Resistance: I 20 Resistance: S 20 Resistance: P 20 Evasion (%) 55 Offensive Hacking 10 Item Schematics ----------------- Com. Wheel | -9/Materials | Scanalyzed Robot Schematics ------------------ None Fabricated ------------ Nothing Repaired ---------- Nothing Studied --------- Aluminum Leg | -9/Materials | Hacked Ion Engine | -9/Materials | Hacked Alien Tech Used ----------------- None Achievements -------------- None Challenges ------------ None Game ------ Seed SalvagingFusionWeb Manual? 0 Play Time 00:24:25 Cumulative 42.9 hours Start 2026.08.17 @ 03:49:59 End 2026.08.17 @ 04:13:32 Sessions 1 Manual Loads 0 Difficulty Adventurer Special Mode None Game No. 29 Rogue 0 Adventurer 29 Explorer 0 Win Type - Total 0 Types 0/0/0/0/0/0/0/0/0/0 Lore% 22 Gallery% 29 Achievement% 23 Wizard Run 0 Options --------- Layout 2 ASCII 0 Keyboard 0 Movement Arrows Keybinds 0 Fullscreen 1 Font 16/Terminus Map View 55x47 Zoom Use 84% Tactical HUD 0 Map Filters NONE Filters NONE Steam 1 RUN: ab2de404-073d-413a-abbf-40d8bf46fe6e